bitfinex/quotes_SOLUSD_20241209
["timestamp","ask_amount","ask_price","bid_price","bid_amount"]
[1733772428212,8.42880553,224.17,224.1,32.45666953]
[1733772428408,8.42880553,224.18,224.11,8.42880553]
[1733772428623,8.42880553,224.18,224.12,23.776884]
[1733772428824,8.42880553,224.19,224.12,23.776884]
[1733772429225,8.42880553,224.2,224.13,8.42880553]
[1733772429432,8.42880553,224.2,224.14,23.776884]
[1733772429622,21.5939,224.21,224.14,32.20568953]
[1733772429934,8.42880553,224.2,224.14,23.776884]
[1733772432105,8.42880553,224.16,224.14,23.776884]
[1733772432337,8.42880553,224.15,224.08,35.21880553]
[1733772432635,8.42880553,224.15,224.09,0.12549]
[1733772433229,8.42880553,224.16,224.09,8.55429553]
[1733772433610,8.42880553,224.17,224.11,23.776884]
[1733772433825,8.42880553,224.17,224.12,0.12549]
[1733772434004,1.5939,224.21,224.13,23.776884]
[1733772434209,8.42880553,224.19,224.13,23.776884]
[1733772434406,8.42880553,224.17,224.13,23.776884]
[1733772434613,8.42880553,224.15,224.11,23.776884]
[1733772434831,8.42880553,224.15,224.09,23.776884]
[1733772434832,8.42880553,224.16,224.09,32.20568953]
[1733772435511,8.42880553,224.15,224.07,33.4065]
[1733772435710,8.42880553,224.15,224.08,8.42880553]
[1733772436221,8.42880553,224.15,224.05,1.4443]
[1733772436222,8.42880553,224.14,224.05,1.4443]
[1733772436431,8.42880553,224.11,224.04,35.21880553]
[1733772436739,8.42880553,224.11,224.05,0.12549]
[1733772436926,8.42880553,224.11,224.05,0.25098]
[1733772437704,8.42880553,224.11,224.05,24.027864]
[1733772437909,8.42880553,224.12,224.05,24.027864]
[1733772438238,8.42880553,224.11,224.05,24.027864]
[1733772438406,8.42880553,224.12,224.05,24.027864]
[1733772439427,8.42880553,224.13,224.06,8.42880553]
[1733772439709,8.42880553,224.14,224.08,23.776884]
[1733772440119,8.42880553,224.14,224.07,23.776884]
[1733772440836,8.42880553,224.13,224.07,23.776884]
[1733772441226,8.42880553,224.13,224.06,23.776884]
[1733772441713,8.42880553,224.12,224.06,23.776884]
[1733772442345,33.71522212,224.18,224.06,23.776884]
[1733772442510,1.5939,224.21,224.05,8.67978553]
[1733772442511,8.42880553,224.16,224.1,23.776884]
[1733772443237,8.42880553,224.16,224.09,23.776884]
[1733772444051,8.42880553,224.15,224.09,23.776884]
[1733772444225,8.42880553,224.16,224.09,23.776884]
[1733772444632,8.42880553,224.17,224.09,32.20568953]
[1733772444817,1.653,224.27,224.17,23.776884]
[1733772445025,8.42880553,224.25,224.19,23.776884]
[1733772445336,8.42880553,224.24,224.19,23.776884]
[1733772445714,8.42880553,224.24,224.18,23.776884]
[1733772446848,1.653,224.27,224.21,8.42880553]
[1733772447021,8.42880553,224.29,224.22,23.776884]
[1733772449568,0.3161208,224.31,224.23,8.42880553]
[1733772449745,0.3161208,224.31,224.25,23.776884]
[1733772450068,0.3161208,224.31,224.27,23.776884]
[1733772450631,0.3161208,224.31,224.25,23.776884]
[1733772450943,0.3161208,224.31,224.25,32.20568953]
[1733772453467,0.3161208,224.31,224.25,36.91654982]
[1733772453763,0.3161208,224.31,224.25,23.776884]
[1733772453928,0.3161208,224.31,224.25,36.91654982]
[1733772455285,13.45578662,224.31,224.24,23.776884]
[1733772456355,13.13966582,224.3,224.24,23.776884]
[1733772457770,13.13966582,224.29,224.24,23.776884]
[1733772457970,13.13966582,224.29,224.22,23.776884]
[1733772458367,13.13966582,224.29,224.22,13.13966582]
[1733772458577,0.3161208,224.31,224.24,23.776884]
[1733772458788,13.13966582,224.29,224.24,23.776884]
[1733772459196,13.13966582,224.29,224.23,23.776884]
[1733772463372,0.3161208,224.31,224.21,23.776884]
[1733772463373,13.13966582,224.26,224.21,23.776884]
[1733772463592,13.13966582,224.26,224.2,23.776884]
[1733772464592,13.13966582,224.26,224.22,23.776884]
[1733772464894,13.13966582,224.27,224.22,23.776884]
[1733772466980,13.13966582,224.26,224.22,23.776884]
[1733772468980,13.13966582,224.28,224.22,23.776884]
[1733772469202,13.13966582,224.29,224.22,36.91654982]
[1733772469405,13.13966582,224.29,224.22,23.776884]
[1733772469916,13.13966582,224.28,224.22,23.776884]
[1733772472684,13.13966582,224.29,224.22,23.776884]
[1733772473093,13.13966582,224.27,224.22,23.776884]
[1733772474625,13.13966582,224.27,224.24,23.776884]
[1733772474802,13.13966582,224.27,224.22,23.776884]
[1733772475189,8.41334991,224.27,224.2,32.19023391]
[1733772476115,8.41334991,224.28,224.22,23.776884]
[1733772476419,8.41334991,224.29,224.22,23.776884]
[1733772477988,0.3161208,224.31,224.24,23.776884]
[1733772478324,8.72947071,224.31,224.24,23.776884]
[1733772479425,8.41334991,224.27,224.24,23.776884]
[1733772479598,8.41334991,224.26,224.24,23.776884]
[1733772479797,8.41334991,224.26,224.19,26.79]
[1733772480024,8.41334991,224.27,224.19,35.20334991]
[1733772480518,8.41334991,224.26,224.19,35.20334991]
[1733772481106,8.41334991,224.26,224.2,23.776884]
[1733772481904,8.41334991,224.25,224.2,23.776884]
[1733772482221,8.41334991,224.25,224.19,26.79]
[1733772482222,8.41334991,224.21,224.12,26.79]
[1733772482391,8.41334991,224.19,224.13,8.41335]
[1733772482597,8.41334991,224.19,224.12,26.79]
[1733772484203,8.41334991,224.19,224.13,23.776884]
[1733772484799,8.41334991,224.19,224.12,23.902374]
[1733772485408,6.3535,224.27,224.12,23.902374]
[1733772485409,8.41334991,224.18,224.12,23.776884]
[1733772486398,8.41334991,224.14,224.08,20.0]
[1733772486601,8.41334991,224.13,224.06,8.41334991]
[1733772487027,35.19039964,224.18,224.04,8.41334991]
[1733772487028,8.41334991,224.12,224.04,8.41334991]
[1733772487232,8.41334991,224.13,224.06,8.41334991]
[1733772487437,8.41334991,224.12,224.05,8.41334991]
[1733772487843,6.6001,224.17,224.05,8.41334991]
[1733772488040,8.41334991,224.12,224.04,8.53883991]
[1733772488410,8.41334991,224.12,224.04,20.0]
[1733772488615,8.41334991,224.12,224.04,28.41334991]
[1733772489015,8.41334991,224.11,224.04,28.41334991]
[1733772489424,8.41334991,224.13,224.06,8.41334991]
[1733772489618,6.6001,224.17,224.07,32.19023391]
[1733772489849,8.41334991,224.14,224.07,32.19023391]
[1733772490351,8.41334991,224.13,224.06,32.31572391]
[1733772491815,8.41334991,224.12,224.06,23.902374]
[1733772493151,8.41334991,224.12,224.06,23.776884]
[1733772493337,8.41334991,224.07,224.05,23.776884]
[1733772493655,8.41334991,224.07,224.0,8.53883991]
[1733772494435,8.41334991,224.07,224.0,8.41334991]
[1733772494637,8.41334991,224.07,224.01,23.776884]
[1733772496954,8.41334991,224.07,224.03,23.776884]
[1733772497250,8.41334991,224.07,224.01,32.19023391]
[1733772497641,1.5638,224.13,224.01,32.19023391]
[1733772497642,8.41334991,224.08,224.01,32.19023391]
[1733772497837,8.41334991,224.07,224.01,23.776884]
[1733772498950,8.41334991,224.06,224.01,23.776884]
[1733772499151,1.5638,224.13,223.93,26.79]
[1733772499152,8.41334991,224.03,223.93,26.79]
[1733772499351,8.41334991,224.02,223.95,8.41334991]
[1733772499526,8.41334991,224.01,223.94,8.41334991]
[1733772499931,8.41334991,224.01,223.95,0.12549]
[1733772500639,8.41334991,224.01,223.95,23.776884]
[1733772501655,8.41334991,224.02,223.95,32.19023391]
[1733772502737,20.0,224.06,224.01,23.776884]
[1733772502950,28.41334991,224.06,224.01,23.776884]
[1733772503260,28.41334991,224.06,223.99,8.41334991]
[1733772503261,8.41334991,224.05,223.99,23.776884]
[1733772505762,1.6551,224.08,224.01,23.776884]
[1733772505763,10.06844991,224.08,224.01,23.776884]
[1733772506630,8.41334991,224.07,224.01,23.776884]
[1733772507239,8.41334991,224.05,224.01,23.776884]
[1733772507530,8.41334991,224.05,223.99,23.776884]
[1733772509158,8.41334991,224.04,223.99,23.776884]
[1733772509535,8.41334991,224.05,223.99,23.776884]
[1733772510047,8.41334991,224.06,223.99,23.776884]
[1733772514071,8.41334991,224.05,223.99,23.776884]
[1733772517074,8.41334991,224.05,224.01,23.776884]
[1733772517377,8.41334991,224.06,223.99,32.19023391]
[1733772517774,8.41334991,224.05,223.99,23.776884]
[1733772519570,8.41334991,224.05,224.01,23.776884]
[1733772520286,8.41334991,224.06,224.01,23.776884]
[1733772521649,21.5795,224.13,224.05,23.776884]
[1733772521978,8.41334991,224.08,224.05,23.776884]
[1733772522472,8.41334991,224.07,224.05,23.776884]
[1733772526060,8.41334991,224.08,224.05,23.776884]
[1733772529561,21.5795,224.13,224.07,23.776884]
[1733772529767,8.41334991,224.1,224.05,23.776884]
[1733772530078,8.41334991,224.11,224.05,23.776884]
[1733772530295,1.5795,224.13,224.05,8.41334991]
[1733772530590,1.5795,224.13,224.04,50.566884]
[1733772530591,1.5795,224.13,224.07,23.776884]
[1733772530976,9.99284991,224.13,224.07,23.776884]
[1733772533394,8.41334991,224.11,224.05,23.776884]
[1733772533922,8.41334991,224.09,224.03,23.776884]
[1733772535006,8.41334991,224.1,224.03,8.41334991]
[1733772535199,8.41334991,224.1,224.04,23.776884]
[1733772535695,8.41334991,224.08,224.02,26.79]
[1733772536004,8.41334991,224.04,223.98,26.79]
[1733772536570,8.41334991,224.03,223.98,26.79]
[1733772536773,8.41334991,224.02,223.98,26.79]
[1733772537071,8.41334991,224.02,223.96,26.79]
[1733772537278,8.41334991,224.0,223.96,26.79]
[1733772537610,1.556,224.04,223.9,30.03]
[1733772537611,8.41334991,223.97,223.9,30.03]
[1733772537795,8.41334991,223.96,223.9,26.79]
[1733772538208,7.91334991,223.96,223.9,26.79]
[1733772539100,7.91334991,223.96,223.91,23.776884]
[1733772539486,7.91334991,223.96,223.9,23.776884]
[1733772539674,7.91334991,223.96,223.9,23.902374]
[1733772540377,1.556,224.04,223.9,23.902374]
[1733772540378,8.41334991,223.98,223.9,32.31572391]
[1733772540909,8.41334991,223.97,223.9,32.31572391]
[1733772541485,8.41334991,223.96,223.89,23.776884]
[1733772543876,8.41334991,223.96,223.89,32.19023391]
[1733772544105,8.41334991,223.96,223.9,23.776884]
[1733772545582,8.41334991,223.97,223.9,23.776884]
[1733772545783,8.41334991,223.97,223.9,8.41334991]
[1733772546199,8.41334991,223.97,223.91,23.776884]
[1733772547886,8.41334991,223.99,223.91,32.19023391]
[1733772548287,8.41334991,223.98,223.91,32.19023391]
[1733772548699,21.556,224.04,223.93,23.776884]
[1733772548939,8.41334991,224.0,223.93,23.776884]
[1733772549113,8.41334991,223.98,223.92,24.027864]
[1733772551103,8.41334991,223.98,223.92,23.776884]
[1733772551315,8.41334991,223.97,223.91,23.776884]
[1733772551709,8.41334991,223.98,223.91,23.776884]
[1733772552095,8.41334991,223.98,223.91,32.19023391]
[1733772554892,21.556,224.04,223.93,23.776884]
[1733772554893,8.41334991,224.0,223.93,23.776884]
[1733772555110,8.41334991,224.0,223.93,32.19023391]
[1733772555329,1.556,224.04,223.96,8.41334991]
[1733772555488,1.556,224.04,223.98,32.19023391]
[1733772555817,9.96934991,224.04,223.97,32.19023391]
[1733772559814,8.41334991,224.03,223.97,23.776884]
[1733772560184,8.41334991,224.02,223.95,23.776884]
[1733772560714,8.41334991,224.02,223.95,32.19023391]
[1733772561096,8.41334991,224.03,223.97,23.776884]
[1733772562723,9.96934991,224.04,223.97,23.776884]
[1733772562922,8.41334991,224.03,223.97,23.776884]
[1733772563414,9.96934991,224.04,223.97,23.776884]
[1733772563959,8.41334991,224.01,223.96,23.776884]
[1733772564227,8.41334991,224.02,223.96,23.776884]
[1733772565203,8.41334991,224.03,223.96,23.776884]
[1733772565421,8.41334991,224.03,223.96,32.19023391]
[1733772565613,1.556,224.04,223.97,8.41334991]
[1733772565821,9.96934991,224.04,223.97,8.41334991]
[1733772566116,9.96934991,224.04,223.98,23.776884]
[1733772566289,1.556,224.04,223.98,32.19023391]
[1733772567094,1.556,224.04,224.01,8.41334991]
[1733772567321,1.556,224.04,224.0,8.41334991]
[1733772567607,1.556,224.04,224.0,23.776884]
[1733772568003,1.556,224.04,223.99,23.776884]
[1733772569739,8.41334991,224.03,223.99,23.776884]
[1733772569948,9.96934991,224.04,223.97,8.41334991]
[1733772570131,8.41334991,224.03,223.95,23.776884]
[1733772570314,1.556,224.04,223.95,32.19023391]
[1733772570315,8.41334991,224.02,223.95,32.19023391]
[1733772570727,8.41334991,224.02,223.9,2.4501281]
[1733772570728,8.41334991,224.01,223.91,0.12549]
[1733772570931,8.41334991,224.0,223.94,0.12549]
[1733772571466,8.41334991,224.0,223.94,0.25098]
[1733772572032,8.41334991,224.0,223.94,24.027864]
[1733772572741,8.41334991,223.99,223.89,26.8]
[1733772573039,8.41334991,223.97,223.9,8.41334991]
[1733772573610,8.41334991,223.97,223.87,26.8]
[1733772573948,8.41334991,223.95,223.88,8.41334991]
[1733772574145,8.41334991,223.94,223.86,8.41334991]
[1733772574313,8.41334991,223.93,223.85,10.44775057]
[1733772574948,8.41334991,223.91,223.85,2.03440066]
[1733772575241,8.41334991,223.91,223.83,8.41334991]
[1733772575444,8.41334991,223.89,223.81,26.8]
[1733772575740,8.41334991,223.88,223.82,0.12549]
[1733772576050,8.41334991,223.9,223.83,8.41334991]
[1733772576216,8.41334991,223.87,223.79,26.8]
[1733772576545,8.41334991,223.87,223.8,8.41334991]
[1733772576753,8.41334991,223.88,223.81,8.41334991]
[1733772577535,8.41334991,223.88,223.82,23.776884]
[1733772578142,20.0,223.93,223.85,8.41334991]
[1733772578444,8.41334991,223.92,223.86,23.776884]
[1733772579822,8.41334991,223.91,223.84,32.19023391]
[1733772580140,8.41334991,223.9,223.84,23.776884]
[1733772580350,8.41334991,223.91,223.84,32.19023391]
[1733772581214,8.41334991,223.92,223.85,8.41334991]
[1733772581725,8.41334991,223.92,223.86,23.776884]
[1733772582132,8.41334991,223.93,223.86,23.776884]
[1733772582338,8.41334991,223.93,223.86,32.19023391]
[1733772583025,8.41334991,223.93,223.85,8.41334991]
[1733772583351,8.41334991,223.93,223.86,23.776884]
[1733772583648,8.41334991,223.94,223.88,23.776884]
[1733772584026,10.07334991,223.95,223.88,8.41334991]
[1733772584344,8.41334991,223.94,223.87,8.41334991]
[1733772584725,8.41334991,223.94,223.88,23.776884]
[1733772584922,10.07334991,223.95,223.88,8.41334991]
[1733772585138,10.07334991,223.95,223.9,32.19023391]
[1733772585139,1.66,223.95,223.9,32.19023391]
[1733772586622,20.0,223.96,223.9,32.19023391]
[1733772587161,10.05954991,224.0,223.94,23.776884]
[1733772589448,1.6462,224.0,223.94,32.19023391]
[1733772589622,10.05954991,224.0,223.94,23.776884]
[1733772592423,10.05954991,224.0,223.93,23.776884]
[1733772592620,8.41334991,223.98,223.93,23.776884]
[1733772592929,8.41334991,223.99,223.92,23.776884]
[1733772594323,8.41334991,223.98,223.92,23.776884]
[1733772594931,8.41334991,223.98,223.91,23.776884]
[1733772595132,8.41334991,223.99,223.91,32.19023391]
[1733772596036,1.6462,224.0,223.91,32.19023391]
[1733772596037,8.41334991,223.98,223.91,32.19023391]
[1733772596241,8.41334991,223.94,223.87,0.66976124]
[1733772596454,8.41334991,223.92,223.82,0.66986873]
[1733772596649,8.41334991,223.92,223.85,8.41334991]
[1733772596855,8.41334991,223.93,223.86,8.41334991]
[1733772597150,20.0,223.99,223.87,8.41334991]
[1733772597451,8.41334991,223.95,223.87,8.41334991]
[1733772597658,8.41334991,223.95,223.89,23.776884]
[1733772599254,8.41334991,223.96,223.89,23.776884]
[1733772599551,20.0,223.99,223.89,23.776884]
[1733772599752,8.41334991,223.99,223.91,23.776884]
[1733772601735,1.6462,224.0,223.94,8.41334991]
[1733772602054,28.41334991,224.02,223.95,8.41334991]
[1733772602234,28.41334991,224.02,223.96,23.776884]
[1733772602433,8.41334991,224.01,223.95,23.776884]
[1733772604147,8.41334991,223.99,223.92,23.776884]
[1733772604354,8.41334991,223.99,223.91,8.41334991]
[1733772605560,8.41334991,224.0,223.93,23.776884]
[1733772606340,8.41334991,224.0,223.92,8.41334991]
[1733772606658,8.41334991,223.99,223.93,23.776884]
[1733772607238,8.41334991,224.0,223.93,32.19023391]
[1733772607846,8.1474,224.05,223.93,32.19023391]
[1733772608042,8.41334991,224.01,223.94,8.41334991]
[1733772608934,8.41334991,224.01,223.95,23.776884]
[1733772609433,8.1474,224.05,223.97,8.41334991]
[1733772609684,8.41334991,224.04,223.97,23.776884]
[1733772611074,8.41334991,224.04,223.97,32.19023391]
[1733772611370,8.41334991,224.04,223.97,23.776884]
[1733772612469,8.41334991,224.03,223.97,23.776884]
[1733772612765,8.41334991,224.02,223.96,23.776884]
[1733772614661,8.41334991,224.03,223.96,23.776884]
[1733772614965,8.41334991,224.04,223.96,32.19023391]
[1733772615360,8.41334991,224.04,223.97,8.41334991]
[1733772615556,10.05824991,224.05,223.98,8.41334991]
[1733772615761,10.05824991,224.05,223.99,23.776884]
[1733772616167,10.05824991,224.05,223.99,32.19023391]
[1733772616168,1.6449,224.05,223.99,32.19023391]
[1733772616346,1.6449,224.05,224.0,8.41334991]
[1733772616546,1.6449,224.05,223.99,32.19023391]
[1733772616753,1.6449,224.05,223.99,23.776884]
[1733772617350,10.05824991,224.05,223.99,23.776884]
[1733772617663,8.41334991,224.02,223.91,26.8]
[1733772617843,8.41334991,223.99,223.92,8.41334991]
[1733772618042,8.41334991,223.99,223.91,35.21334991]
[1733772619152,8.41334991,223.99,223.92,8.53883991]
[1733772619352,8.41334991,223.99,223.93,23.776884]
[1733772621051,8.41334991,223.97,223.93,23.776884]
[1733772621275,8.41334991,223.97,223.91,50.827864]
[1733772622186,8.41334991,223.98,223.91,59.24121391]
[1733772622551,8.41334991,223.97,223.91,50.576884]
[1733772622756,1.6449,224.05,223.91,50.576884]
[1733772622757,8.41334991,223.96,223.91,50.576884]
[1733772622976,8.41334991,223.96,223.91,23.776884]
[1733772623182,8.41334991,223.93,223.86,35.21334991]
[1733772623482,8.41334991,223.92,223.86,26.8]
[1733772624679,8.41334991,223.92,223.84,8.41334991]
[1733772624888,8.41334991,223.91,223.84,8.41334991]
[1733772625184,8.41334991,223.89,223.79,28.2443]
[1733772625381,8.41334991,223.88,223.81,8.41334991]
[1733772625689,8.41334991,223.89,223.82,8.41334991]
[1733772625850,1.5264,223.95,223.85,8.41334991]
[1733772626056,8.41334991,223.94,223.87,8.41334991]
[1733772626361,8.41334991,223.92,223.84,8.41334991]
[1733772626690,8.41334991,223.92,223.86,23.776884]
[1733772627391,8.41334991,223.92,223.85,23.902374]
[1733772629095,8.41334991,223.91,223.85,23.902374]
[1733772629480,1.5264,223.95,223.85,23.902374]
[1733772629481,8.41334991,223.92,223.85,23.902374]
[1733772631091,8.41334991,223.92,223.81,0.12549]
[1733772631092,8.41334991,223.9,223.83,32.19023391]
[1733772632083,8.41334991,223.9,223.84,0.12549]
[1733772632476,8.41334991,223.92,223.85,8.41334991]
[1733772632681,8.41334991,223.93,223.86,23.776884]
[1733772634404,1.5264,223.95,223.88,8.41334991]
[1733772634692,1.5264,223.95,223.89,8.41334991]
[1733772634899,1.5264,223.95,223.89,32.31572391]
[1733772635197,1.5264,223.95,223.91,23.776884]
[1733772635570,1.5264,223.95,223.9,23.902374]
[1733772635972,9.93974991,223.95,223.88,23.776884]
[1733772636180,8.41334991,223.93,223.88,23.776884]
[1733772636386,8.41334991,223.93,223.86,23.776884]
[1733772636894,8.41334991,223.93,223.87,0.12549]
[1733772637098,8.41334991,223.94,223.88,23.776884]
[1733772637784,8.41334991,223.93,223.88,23.776884]
[1733772637969,8.41334991,223.93,223.87,23.902374]
[1733772638173,8.41334991,223.94,223.87,32.31572391]
[1733772638777,9.93974991,223.95,223.87,32.31572391]
[1733772639106,1.5264,223.95,223.9,32.31572391]
[1733772639305,1.5264,223.95,223.92,23.776884]
[1733772639674,1.5264,223.95,223.9,23.902374]
[1733772641186,1.5264,223.95,223.91,23.776884]
[1733772641770,1.5264,223.95,223.91,32.19023391]
[1733772641967,1.5264,223.95,223.91,8.41334991]
[1733772642194,1.5264,223.95,223.92,23.776884]
[1733772643285,1.5264,223.95,223.91,23.902374]
[1733772645594,9.93974991,223.95,223.89,23.776884]
[1733772646576,1.5264,223.95,223.89,23.776884]
[1733772646872,9.93974991,223.95,223.89,23.776884]
[1733772648802,9.93974991,223.95,223.88,23.902374]
[1733772649580,9.93974991,223.95,223.9,23.776884]
[1733772649783,8.41334991,223.91,223.88,23.776884]
[1733772649998,8.41334991,223.89,223.85,23.776884]
[1733772650606,8.41334991,223.89,223.83,26.8]
[1733772651707,8.41334991,223.89,223.83,0.12549]
[1733772652706,8.41334991,223.89,223.83,23.902374]
[1733772654491,8.41334991,223.89,223.82,23.902374]
[1733772654887,8.41334991,223.88,223.82,23.902374]
[1733772655207,8.41334991,223.88,223.82,0.12549]
[1733772655410,8.41334991,223.87,223.82,0.12549]
[1733772656080,8.41334991,223.88,223.82,0.12549]
[1733772660187,8.41334991,223.87,223.82,0.12549]
[1733772660700,8.41334991,223.88,223.82,0.12549]
[1733772660883,8.41334991,223.88,223.82,23.902374]
[1733772662021,8.41334991,223.87,223.82,23.902374]
[1733772662210,8.41334991,223.87,223.81,23.902374]
[1733772662509,8.41334991,223.88,223.81,8.53883991]
[1733772662705,8.41334991,223.88,223.82,23.776884]
[1733772662884,20.0,223.9,223.82,23.776884]
[1733772663085,8.41334991,223.88,223.82,23.776884]
[1733772664598,8.41334991,223.87,223.81,23.902374]
[1733772667809,8.41334991,223.88,223.81,8.53883991]
[1733772668184,8.41334991,223.88,223.82,23.776884]
[1733772668382,20.0,223.9,223.82,23.776884]
[1733772668383,8.41334991,223.87,223.82,23.776884]
[1733772668617,8.41334991,223.87,223.81,23.902374]
[1733772669128,8.41334991,223.88,223.82,23.776884]
[1733772674499,8.41334991,223.88,223.83,26.8]
[1733772674704,8.41334991,223.88,223.82,23.776884]
[1733772675401,8.41334991,223.83,223.77,0.4233666]
[1733772675609,8.41334991,223.81,223.77,0.4233666]
[1733772675793,8.41334991,223.8,223.77,0.4233666]
[1733772676014,8.41334991,223.78,223.77,0.4233666]
[1733772677590,1.6598,223.79,223.77,0.4233666]
[1733772678017,10.07314991,223.79,223.77,0.4233666]
[1733772678201,8.41334991,223.78,223.77,0.4233666]
[1733772680614,14.45134991,223.78,223.77,6.66e-05]
[1733772686023,14.45134991,223.78,223.75,0.2150512]
[1733772686024,20.0,223.76,223.75,0.2150512]
[1733772686218,28.41334991,223.76,223.75,0.2150512]
[1733772691144,6.038,223.78,223.75,0.2150512]
[1733772691327,8.41334991,223.76,223.75,0.2150512]
[1733772698954,8.41334991,223.76,223.75,5.12e-05]
[1733772698955,48.35583955,223.76,223.75,5.12e-05]
[1733772699120,48.35583955,223.76,223.61,0.12549]
[1733772699319,8.41334991,223.66,223.6,33.3419]
[1733772699622,8.41334991,223.66,223.6,0.12549]
[1733772699824,8.41334991,223.66,223.59,8.41334991]
[1733772700023,8.41334991,223.63,223.55,7.6157]
[1733772700252,8.41334991,223.62,223.53,2.00986607]
[1733772700451,8.41334991,223.59,223.53,2.00986607]
[1733772700823,8.41334991,223.61,223.54,8.53883991]
[1733772701024,8.41334991,223.6,223.54,0.12549]
[1733772701224,8.41334991,223.6,223.53,10.42321598]
[1733772701225,8.41334991,223.56,223.53,2.00986607]
[1733772701455,8.41334991,223.56,223.52,0.531172]
[1733772701658,8.41334991,223.58,223.53,0.12549]
[1733772702233,8.41334991,223.58,223.52,0.531172]
[1733772702834,8.41334991,223.59,223.52,0.531172]
[1733772703250,8.41334991,223.59,223.53,0.12549]
[1733772703755,8.41334991,223.59,223.53,23.902374]
[1733772704061,8.41334991,223.57,223.52,0.531172]
[1733772705238,8.41334991,223.56,223.52,0.531172]
[1733772706656,8.41334991,223.53,223.52,0.531172]
[1733772708143,8.41334991,223.54,223.52,0.531172]
[1733772710552,8.41334991,223.53,223.52,0.531172]
[1733772713768,9.96194991,223.53,223.52,0.531172]
[1733772714091,21.5486,223.53,223.52,0.531172]
[1733772714361,29.96194991,223.53,223.52,0.531172]
[1733772715260,29.96194991,223.53,223.52,7.2e-05]
[1733772715261,68.85432955,223.53,223.52,7.2e-05]
[1733772715856,20.0,223.49,223.34,110.58568587]
[1733772716062,8.41334991,223.43,223.36,8.41334991]
[1733772716262,8.41334991,223.42,223.35,10.42483576]
[1733772716570,8.41334991,223.42,223.35,8.41334991]
[1733772717137,8.41334991,223.42,223.36,23.776884]
[1733772718965,8.41334991,223.4,223.35,23.776884]
[1733772719371,8.41334991,223.39,223.35,23.776884]
[1733772719570,8.41334991,223.38,223.34,110.58568587]
[1733772719783,8.41334991,223.37,223.34,110.58568587]
[1733772719995,8.41334991,223.38,223.34,110.58568587]
[1733772720289,21.6601,223.43,223.34,110.58568587]
[1733772720585,8.41334991,223.4,223.34,110.58568587]
[1733772721085,8.41334991,223.41,223.35,23.776884]
[1733772721388,8.41334991,223.4,223.35,23.776884]
[1733772721890,1.6601,223.5,223.36,0.12549]
[1733772722050,3.35355611,223.56,223.4,8.53883991]
[1733772722256,8.41334991,223.51,223.44,8.41334991]
[1733772722485,8.41334991,223.49,223.42,8.41334991]
[1733772722783,8.41334991,223.49,223.43,23.776884]
[1733772723089,1.5854,223.56,223.43,23.776884]
[1733772723294,8.41334991,223.52,223.46,23.776884]
[1733772723785,8.41334991,223.51,223.45,23.776884]
[1733772723985,8.41334991,223.53,223.46,8.41334991]
[1733772724288,38.64139964,223.63,223.49,32.19023391]
[1733772724289,1.5854,223.63,223.49,32.19023391]
[1733772724471,8.41334991,223.57,223.51,23.776884]
[1733772724785,8.41334991,223.55,223.51,23.776884]
[1733772725157,8.41334991,223.55,223.5,0.12549]
[1733772725482,8.41334991,223.54,223.49,23.776884]
[1733772725780,8.41334991,223.54,223.48,23.902374]
[1733772726189,35.23879964,223.63,223.47,8.41334991]
[1733772726190,8.41334991,223.53,223.47,23.776884]
[1733772726357,8.41334991,223.53,223.46,23.776884]
[1733772726685,8.41334991,223.51,223.45,23.776884]
[1733772727390,8.41334991,223.51,223.46,0.12549]
[1733772727760,8.41334991,223.52,223.46,0.12549]
[1733772728294,8.41334991,223.54,223.46,8.53883991]
[1733772728461,8.41334991,223.57,223.5,23.776884]
[1733772728796,35.23879964,223.63,223.5,23.776884]
[1733772728797,8.41334991,223.56,223.5,23.776884]
[1733772728960,8.41334991,223.55,223.5,23.776884]
[1733772729285,35.23879964,223.63,223.48,23.776884]
[1733772729286,8.41334991,223.51,223.48,23.776884]
[1733772729800,8.41334991,223.54,223.47,8.41334991]
[1733772729975,8.41334991,223.54,223.48,23.776884]
[1733772730290,8.41334991,223.54,223.46,32.19023391]
[1733772730464,8.41334991,223.53,223.46,32.19023391]
[1733772731281,8.41334991,223.55,223.48,23.776884]
[1733772732469,0.12549,223.62,223.48,32.19023391]
[1733772732667,8.41334991,223.57,223.5,23.776884]
[1733772733082,8.41334991,223.56,223.5,23.776884]
[1733772734795,8.41334991,223.56,223.49,23.776884]
[1733772734974,0.12549,223.62,223.49,23.776884]